[Event "Late-Titled-Tuesday-Blitz-January-16-2024"]
[Site "Chess.com"]
[Date "2024.01.16"]
[Round "6"]
[White "secretsuperstar7"]
[Black "imdarealist"]
[Result "1/2-1/2"]
[WhiteElo "2494"]
[BlackElo "2293"]
[TimeControl "180+1"]
[EndTime "15:03:40 PST"]
[Termination "Game drawn by repetition"]

1. c4 {[%clk 0:02:56.3]} 1... e5 {[%clk 0:02:58.1]} 2. Nc3 {[%clk 0:02:56.7]}
2... Nc6 {[%clk 0:02:58.5]} 3. g3 {[%clk 0:02:57.1]} 3... Bc5 {[%clk 0:02:58.7]}
4. Bg2 {[%clk 0:02:57.6]} 4... Nf6 {[%clk 0:02:58.7]} 5. d3 {[%clk 0:02:56.6]}
5... d6 {[%clk 0:02:58.1]} 6. Nf3 {[%clk 0:02:56.9]} 6... O-O {[%clk 0:02:57.9]}
7. O-O {[%clk 0:02:57.1]} 7... Bg4 {[%clk 0:02:56.4]} 8. a3 {[%clk 0:02:54.2]}
8... a5 {[%clk 0:02:56.5]} 9. Rb1 {[%clk 0:02:53.7]} 9... Re8 {[%clk 0:02:53.8]}
10. Ne1 {[%clk 0:02:47.3]} 10... Bh5 {[%clk 0:02:49.7]} 11. Nc2 {[%clk
0:02:46.8]} 11... Nd4 {[%clk 0:02:47.8]} 12. Bxb7 {[%clk 0:02:35.5]} 12... Rb8
{[%clk 0:02:46.7]} 13. Bg2 {[%clk 0:02:35.2]} 13... Qd7 {[%clk 0:02:36.7]} 14.
Bg5 {[%clk 0:02:34]} 14... Qf5 {[%clk 0:02:26.6]} 15. Bxf6 {[%clk 0:02:22.3]}
15... Qxf6 {[%clk 0:02:27.5]} 16. Ne4 {[%clk 0:02:22]} 16... Qe7 {[%clk
0:02:25.1]} 17. Nxc5 {[%clk 0:02:20.3]} 17... dxc5 {[%clk 0:02:26]} 18. f3
{[%clk 0:02:14.4]} 18... Qd6 {[%clk 0:02:21.3]} 19. e3 {[%clk 0:02:13.8]} 19...
Nc6 {[%clk 0:02:13.9]} 20. Qd2 {[%clk 0:02:10.9]} 20... Rb3 {[%clk 0:02:08.3]}
21. Rfc1 {[%clk 0:02:08.1]} 21... Rxd3 {[%clk 0:02:07.2]} 22. Qe1 {[%clk
0:02:08.1]} 22... Rd8 {[%clk 0:02:05]} 23. Bf1 {[%clk 0:02:00.4]} 23... Rd2
{[%clk 0:02:01.7]} 24. Be2 {[%clk 0:01:59.6]} 24... Qf6 {[%clk 0:01:57.5]} 25.
g4 {[%clk 0:01:51.6]} 25... Bg6 {[%clk 0:01:56.6]} 26. e4 {[%clk 0:01:47.3]}
26... Nd4 {[%clk 0:01:56.9]} 27. Nxd4 {[%clk 0:01:38.1]} 27... R8xd4 {[%clk
0:01:57.5]} 28. Rd1 {[%clk 0:01:38.3]} 28... Rxd1 {[%clk 0:01:34.3]} 29. Rxd1
{[%clk 0:01:39.2]} 29... Qf4 {[%clk 0:01:30.3]} 30. Qxa5 {[%clk 0:01:21.6]}
30... Qe3+ {[%clk 0:01:27.6]} 31. Kf1 {[%clk 0:01:21.5]} 31... h5 {[%clk
0:01:24.9]} 32. h3 {[%clk 0:01:13.1]} 32... hxg4 {[%clk 0:01:23.4]} 33. hxg4
{[%clk 0:01:12.4]} 33... Bxe4 {[%clk 0:00:41.6]} 34. fxe4 {[%clk 0:01:00.6]}
34... Qh3+ {[%clk 0:00:37.3]} 35. Kf2 {[%clk 0:00:53.5]} 35... Qh2+ {[%clk
0:00:35.7]} 36. Kf1 {[%clk 0:00:36.5]} 36... Qh1+ {[%clk 0:00:29.9]} 37. Kf2
{[%clk 0:00:36.7]} 37... Qh2+ {[%clk 0:00:15.5]} 38. Kf1 {[%clk 0:00:33.2]}
38... Qh3+ {[%clk 0:00:14.5]} 39. Kf2 {[%clk 0:00:29.9]} 39... Qh2+ {[%clk
0:00:11.6]} 1/2-1/2

[Event "Late-Titled-Tuesday-Blitz-January-16-2024"]
[Site "Chess.com"]
[Date "2024.01.16"]
[Round "6"]
[White "Njal28"]
[Black "iulik86"]
[Result "1-0"]
[WhiteElo "3009"]
[BlackElo "2600"]
[TimeControl "180+1"]
[EndTime "15:03:45 PST"]
[Termination "Njal28 won by checkmate"]

1. d4 {[%clk 0:03:00.9]} 1... d5 {[%clk 0:02:08.8]} 2. c4 {[%clk 0:02:57.9]}
2... e6 {[%clk 0:02:08.3]} 3. g3 {[%clk 0:02:57.3]} 3... Nf6 {[%clk 0:02:07.5]}
4. Bg2 {[%clk 0:02:57.2]} 4... Bb4+ {[%clk 0:02:07.2]} 5. Nc3 {[%clk 0:02:55.8]}
5... O-O {[%clk 0:02:04.7]} 6. Nf3 {[%clk 0:02:55.8]} 6... dxc4 {[%clk
0:01:58.8]} 7. O-O {[%clk 0:02:55.9]} 7... Nc6 {[%clk 0:01:57.4]} 8. a3 {[%clk
0:02:55]} 8... Ba5 {[%clk 0:01:44.3]} 9. Qa4 {[%clk 0:02:48.3]} 9... Bb6 {[%clk
0:01:16.2]} 10. Rd1 {[%clk 0:02:41]} 10... Na5 {[%clk 0:01:08]} 11. Bg5 {[%clk
0:02:41]} 11... Bd7 {[%clk 0:01:05.6]} 12. Qc2 {[%clk 0:02:40.4]} 12... Bc6
{[%clk 0:00:59.5]} 13. e4 {[%clk 0:02:37.4]} 13... h6 {[%clk 0:00:58.9]} 14. Bh4
{[%clk 0:02:36.8]} 14... Qe8 {[%clk 0:00:44.2]} 15. Bxf6 {[%clk 0:02:28]} 15...
gxf6 {[%clk 0:00:45.1]} 16. Qd2 {[%clk 0:02:27.8]} 16... Kg7 {[%clk 0:00:40.9]}
17. Qf4 {[%clk 0:02:27.7]} 17... Qe7 {[%clk 0:00:32.9]} 18. d5 {[%clk
0:02:21.1]} 18... Bd7 {[%clk 0:00:28.9]} 19. e5 {[%clk 0:02:16.6]} 19... f5
{[%clk 0:00:25.5]} 20. d6 {[%clk 0:02:14.5]} 20... cxd6 {[%clk 0:00:25]} 21.
exd6 {[%clk 0:02:15.4]} 21... Qf6 {[%clk 0:00:24.6]} 22. Ne5 {[%clk 0:02:16]}
22... Rad8 {[%clk 0:00:23.9]} 23. Nxc4 {[%clk 0:02:03.6]} 23... Nxc4 {[%clk
0:00:20.3]} 24. Qxc4 {[%clk 0:02:04.5]} 24... Rc8 {[%clk 0:00:20.1]} 25. Qd3
{[%clk 0:02:02.7]} 25... Bc6 {[%clk 0:00:18.3]} 26. d7 {[%clk 0:01:58.5]} 26...
Rcd8 {[%clk 0:00:16]} 27. Bxc6 {[%clk 0:01:58.5]} 27... bxc6 {[%clk 0:00:16.9]}
28. Na4 {[%clk 0:01:42.3]} 28... f4 {[%clk 0:00:16.9]} 29. Nxb6 {[%clk
0:01:38.9]} 29... axb6 {[%clk 0:00:17.8]} 30. Rac1 {[%clk 0:01:39.5]} 30... c5
{[%clk 0:00:17.5]} 31. Rc4 {[%clk 0:01:39.7]} 31... e5 {[%clk 0:00:16.3]} 32.
Ra4 {[%clk 0:01:38]} 32... Qe6 {[%clk 0:00:13.2]} 33. Ra7 {[%clk 0:01:37.2]}
33... e4 {[%clk 0:00:10.5]} 34. Qc3+ {[%clk 0:01:36.6]} 34... Kh7 {[%clk
0:00:10.8]} 35. Qc2 {[%clk 0:01:09.1]} 35... Rg8 {[%clk 0:00:09.9]} 36. b4
{[%clk 0:01:02.3]} 36... f5 {[%clk 0:00:07.9]} 37. bxc5 {[%clk 0:01:00.5]} 37...
bxc5 {[%clk 0:00:08.1]} 38. Qxc5 {[%clk 0:01:01]} 38... e3 {[%clk 0:00:08.5]}
39. Qc2 {[%clk 0:00:45.8]} 39... e2 {[%clk 0:00:07]} 40. Re1 {[%clk 0:00:46.4]}
40... f3 {[%clk 0:00:07.6]} 41. Qd3 {[%clk 0:00:44.1]} 41... Qe4 {[%clk
0:00:07.8]} 42. Qd6 {[%clk 0:00:38.7]} 42... Rg7 {[%clk 0:00:07.6]} 43. Ra6
{[%clk 0:00:39.5]} 43... Rdxd7 {[%clk 0:00:05.2]} 44. Qxh6+ {[%clk 0:00:39.7]}
44... Kg8 {[%clk 0:00:05.3]} 45. Re6 {[%clk 0:00:39.4]} 45... Qd4 {[%clk
0:00:02.7]} 46. Re8+ {[%clk 0:00:38.7]} 46... Kf7 {[%clk 0:00:03]} 47. Qe6#
{[%clk 0:00:39.4]} 1-0

[Event "Late-Titled-Tuesday-Blitz-January-16-2024"]
[Site "Chess.com"]
[Date "2024.01.16"]
[Round "6"]
[White "BozeKat"]
[Black "shirovin"]
[Result "1-0"]
[WhiteElo "2100"]
[BlackElo "1992"]
[TimeControl "180+1"]
[EndTime "15:03:45 PST"]
[Termination "BozeKat won by checkmate"]

1. d4 {[%clk 0:03:00.9]} 1... d5 {[%clk 0:02:58.9]} 2. c4 {[%clk 0:02:59.5]}
2... Nf6 {[%clk 0:02:59.3]} 3. cxd5 {[%clk 0:02:54.5]} 3... Nxd5 {[%clk
0:02:59.4]} 4. e4 {[%clk 0:02:54.9]} 4... Nb6 {[%clk 0:02:59.4]} 5. Nf3 {[%clk
0:02:54.7]} 5... g6 {[%clk 0:02:58.2]} 6. a4 {[%clk 0:02:54.2]} 6... a5 {[%clk
0:02:55.4]} 7. h3 {[%clk 0:02:49.8]} 7... Bg7 {[%clk 0:02:54.9]} 8. Be2 {[%clk
0:02:48.4]} 8... O-O {[%clk 0:02:47.7]} 9. O-O {[%clk 0:02:48]} 9... Nc6 {[%clk
0:02:39.7]} 10. Be3 {[%clk 0:02:44]} 10... Nb4 {[%clk 0:02:33.9]} 11. Nc3 {[%clk
0:02:43]} 11... c6 {[%clk 0:02:31.1]} 12. Na2 {[%clk 0:02:22.3]} 12... Nxa2
{[%clk 0:02:20.5]} 13. Rxa2 {[%clk 0:02:22.4]} 13... Be6 {[%clk 0:02:21.1]} 14.
Ra3 {[%clk 0:02:19.3]} 14... Nc4 {[%clk 0:02:20.5]} 15. Bxc4 {[%clk 0:02:07.3]}
15... Bxc4 {[%clk 0:02:19.2]} 16. Re1 {[%clk 0:02:06.1]} 16... Qb6 {[%clk
0:02:13.3]} 17. Qc2 {[%clk 0:01:50.2]} 17... Ba6 {[%clk 0:02:04.3]} 18. Rb3
{[%clk 0:01:45]} 18... Qc7 {[%clk 0:02:03]} 19. d5 {[%clk 0:01:37.7]} 19... Rac8
{[%clk 0:01:57.8]} 20. Rc1 {[%clk 0:01:19.3]} 20... Rfd8 {[%clk 0:01:48.5]} 21.
Bd4 {[%clk 0:01:16.8]} 21... Rd7 {[%clk 0:01:42.8]} 22. Bxg7 {[%clk 0:01:15.3]}
22... Kxg7 {[%clk 0:01:42.6]} 23. Rc3 {[%clk 0:01:14.5]} 23... Rd6 {[%clk
0:01:32.1]} 24. Nd4 {[%clk 0:01:11.5]} 24... e5 {[%clk 0:01:20.1]} 25. Nb5
{[%clk 0:01:05.8]} 25... Bxb5 {[%clk 0:01:05.1]} 26. axb5 {[%clk 0:01:06.7]}
26... Qb6 {[%clk 0:01:00.5]} 27. bxc6 {[%clk 0:01:02.5]} 27... bxc6 {[%clk
0:00:59.7]} 28. Rxc6 {[%clk 0:00:59.7]} 28... Rdxc6 {[%clk 0:00:59.3]} 29. dxc6
{[%clk 0:00:59.8]} 29... Rc7 {[%clk 0:00:59.7]} 30. Qc3 {[%clk 0:00:57.2]} 30...
f6 {[%clk 0:00:58.1]} 31. Qc4 {[%clk 0:00:44.9]} 31... h5 {[%clk 0:00:45.2]} 32.
b3 {[%clk 0:00:41]} 32... Kh6 {[%clk 0:00:42.1]} 33. h4 {[%clk 0:00:37.6]} 33...
Kg7 {[%clk 0:00:41.2]} 34. g3 {[%clk 0:00:20.2]} 34... Qb8 {[%clk 0:00:38.6]}
35. Rd1 {[%clk 0:00:19]} 35... Qa7 {[%clk 0:00:37.4]} 36. Qe6 {[%clk 0:00:14]}
36... Re7 {[%clk 0:00:35.6]} 37. Rd7 {[%clk 0:00:11.7]} 37... Rxd7 {[%clk
0:00:23]} 38. cxd7 {[%clk 0:00:12.6]} 38... Qd4 {[%clk 0:00:22]} 39. Qe7+ {[%clk
0:00:11.5]} 39... Kh6 {[%clk 0:00:20.4]} 40. Qf8+ {[%clk 0:00:10.7]} 40... Kh7
{[%clk 0:00:20.2]} 41. d8=Q {[%clk 0:00:10.5]} 41... Qxe4 {[%clk 0:00:18.9]} 42.
Qh8# {[%clk 0:00:09.9]} 1-0

[Event "Late-Titled-Tuesday-Blitz-January-16-2024"]
[Site "Chess.com"]
[Date "2024.01.16"]
[Round "6"]
[White "MeisterJabo"]
[Black "Lennis93"]
[Result "1-0"]
[WhiteElo "2319"]
[BlackElo "2695"]
[TimeControl "180+1"]
[EndTime "15:03:48 PST"]
[Termination "MeisterJabo won by checkmate"]

1. c4 {[%clk 0:02:57.3]} 1... c5 {[%clk 0:02:55.8]} 2. g3 {[%clk 0:02:57.4]}
2... g6 {[%clk 0:02:53.4]} 3. Bg2 {[%clk 0:02:57.4]} 3... Bg7 {[%clk 0:02:53.1]}
4. Nc3 {[%clk 0:02:57.8]} 4... Nc6 {[%clk 0:02:53.4]} 5. a3 {[%clk 0:02:58.3]}
5... Nh6 {[%clk 0:02:51.6]} 6. Rb1 {[%clk 0:02:56]} 6... a5 {[%clk 0:02:50.6]}
7. e4 {[%clk 0:02:54.4]} 7... d6 {[%clk 0:02:49]} 8. Nge2 {[%clk 0:02:53.5]}
8... Ng4 {[%clk 0:02:48.6]} 9. d3 {[%clk 0:02:33.8]} 9... h5 {[%clk 0:02:44.6]}
10. h3 {[%clk 0:02:32.7]} 10... Nge5 {[%clk 0:02:44.4]} 11. f4 {[%clk
0:02:31.5]} 11... Nd7 {[%clk 0:02:42.3]} 12. Be3 {[%clk 0:02:31]} 12... Nd4
{[%clk 0:02:05.6]} 13. O-O {[%clk 0:02:21.8]} 13... Nb8 {[%clk 0:02:05.5]} 14.
Nb5 {[%clk 0:02:18.8]} 14... Nxb5 {[%clk 0:02:03.8]} 15. cxb5 {[%clk 0:02:19.7]}
15... a4 {[%clk 0:02:01.5]} 16. d4 {[%clk 0:02:18.6]} 16... cxd4 {[%clk
0:01:56.8]} 17. Bxd4 {[%clk 0:02:19.5]} 17... e5 {[%clk 0:01:56.8]} 18. fxe5
{[%clk 0:02:12.4]} 18... dxe5 {[%clk 0:01:56.6]} 19. Bc5 {[%clk 0:02:00.5]}
19... Qxd1 {[%clk 0:01:55.4]} 20. Rbxd1 {[%clk 0:02:01.4]} 20... Be6 {[%clk
0:01:55.5]} 21. Nc3 {[%clk 0:02:00.2]} 21... Nd7 {[%clk 0:01:55]} 22. Be3 {[%clk
0:01:56]} 22... Bb3 {[%clk 0:01:47.8]} 23. Rd2 {[%clk 0:01:53.1]} 23... O-O
{[%clk 0:01:45.4]} 24. Rxd7 {[%clk 0:01:50.8]} 24... Rab8 {[%clk 0:01:34.8]} 25.
Nd5 {[%clk 0:01:48.9]} 25... Bc4 {[%clk 0:01:30.7]} 26. Rc1 {[%clk 0:01:33.8]}
26... Bxb5 {[%clk 0:01:30.8]} 27. Rdc7 {[%clk 0:01:34.1]} 27... Kh8 {[%clk
0:01:20.7]} 28. h4 {[%clk 0:01:32.6]} 28... f5 {[%clk 0:01:15.2]} 29. Ne7 {[%clk
0:01:29]} 29... Kh7 {[%clk 0:01:11.3]} 30. exf5 {[%clk 0:01:28.6]} 30... gxf5
{[%clk 0:01:11.6]} 31. Bh3 {[%clk 0:01:28.3]} 31... f4 {[%clk 0:01:10.3]} 32.
Bf5+ {[%clk 0:01:23.2]} 32... Kh6 {[%clk 0:01:10.2]} 33. gxf4 {[%clk 0:01:22.1]}
33... e4 {[%clk 0:01:02.4]} 34. Bg6 {[%clk 0:01:15.8]} 34... Bxb2 {[%clk
0:00:58.2]} 35. f5+ {[%clk 0:01:15.3]} 35... Kg7 {[%clk 0:00:57.9]} 36. Nd5+
{[%clk 0:00:56.1]} 36... Kg8 {[%clk 0:00:56.6]} 37. Rb1 {[%clk 0:00:46.4]} 37...
Be5 {[%clk 0:00:53.4]} 38. Rxb5 {[%clk 0:00:45.8]} 38... Bxc7 {[%clk 0:00:53.5]}
39. Nxc7 {[%clk 0:00:46.7]} 39... Rfc8 {[%clk 0:00:53.7]} 40. Bf4 {[%clk
0:00:45]} 40... Rd8 {[%clk 0:00:51.7]} 41. Re5 {[%clk 0:00:39.5]} 41... Rd1+
{[%clk 0:00:51.6]} 42. Kf2 {[%clk 0:00:38.6]} 42... Rd3 {[%clk 0:00:47.3]} 43.
Rxe4 {[%clk 0:00:37.4]} 43... Rxa3 {[%clk 0:00:46.8]} 44. Re7 {[%clk 0:00:37]}
44... Ra2+ {[%clk 0:00:35.9]} 45. Kf3 {[%clk 0:00:36.6]} 45... Ra3+ {[%clk
0:00:36.4]} 46. Ke4 {[%clk 0:00:36.6]} 46... Rd8 {[%clk 0:00:30.8]} 47. Be5
{[%clk 0:00:36]} 47... Rb3 {[%clk 0:00:14.5]} 48. Rg7+ {[%clk 0:00:35.2]} 48...
Kf8 {[%clk 0:00:14.5]} 49. Ne6# {[%clk 0:00:34.1]} 1-0

[Event "Late-Titled-Tuesday-Blitz-January-16-2024"]
[Site "Chess.com"]
[Date "2024.01.16"]
[Round "6"]
[White "lucliasco"]
[Black "DraningWaterHi"]
[Result "1-0"]
[WhiteElo "2865"]
[BlackElo "2244"]
[TimeControl "180+1"]
[EndTime "15:03:49 PST"]
[Termination "lucliasco won by checkmate"]

1. d4 {[%clk 0:03:00.9]} 1... Nf6 {[%clk 0:02:59.7]} 2. Nf3 {[%clk 0:03:00.9]}
2... g6 {[%clk 0:02:59.4]} 3. Bg5 {[%clk 0:03:00.4]} 3... Bg7 {[%clk 0:02:59.6]}
4. Bxf6 {[%clk 0:03:00.5]} 4... exf6 {[%clk 0:02:58.2]} 5. e3 {[%clk 0:03:01.2]}
5... f5 {[%clk 0:02:58.7]} 6. h4 {[%clk 0:03:01.9]} 6... h5 {[%clk 0:02:58.4]}
7. c4 {[%clk 0:03:02.5]} 7... O-O {[%clk 0:02:57.3]} 8. Nc3 {[%clk 0:03:03.4]}
8... d6 {[%clk 0:02:55.3]} 9. Be2 {[%clk 0:03:03.1]} 9... c6 {[%clk 0:02:55.3]}
10. O-O {[%clk 0:03:03.6]} 10... d5 {[%clk 0:02:51.6]} 11. cxd5 {[%clk
0:03:03.4]} 11... cxd5 {[%clk 0:02:51.9]} 12. Qb3 {[%clk 0:03:04.2]} 12... Be6
{[%clk 0:02:48.6]} 13. Qxb7 {[%clk 0:02:41.7]} 13... Nd7 {[%clk 0:02:45.6]} 14.
Rab1 {[%clk 0:02:28.9]} 14... Qa5 {[%clk 0:02:36.9]} 15. Qb5 {[%clk 0:02:28]}
15... Qxb5 {[%clk 0:02:26.9]} 16. Nxb5 {[%clk 0:02:28.3]} 16... Rfc8 {[%clk
0:02:24.8]} 17. Rfc1 {[%clk 0:02:26.1]} 17... a6 {[%clk 0:02:22.4]} 18. Nc7
{[%clk 0:02:25.5]} 18... Ra7 {[%clk 0:02:18.4]} 19. Nxa6 {[%clk 0:02:19.7]}
19... Rxc1+ {[%clk 0:02:19.3]} 20. Rxc1 {[%clk 0:02:20.2]} 20... Nb6 {[%clk
0:02:17.1]} 21. a3 {[%clk 0:02:09.9]} 21... Nc4 {[%clk 0:02:17.2]} 22. Bxc4
{[%clk 0:02:10.2]} 22... dxc4 {[%clk 0:02:18.1]} 23. Nc5 {[%clk 0:02:07.8]}
23... Bd5 {[%clk 0:02:17]} 24. Nd2 {[%clk 0:02:08]} 24... Bf8 {[%clk 0:02:15.7]}
25. Nxc4 {[%clk 0:02:06.9]} 25... Be7 {[%clk 0:02:12.5]} 26. g3 {[%clk
0:02:05.3]} 26... Rc7 {[%clk 0:02:10]} 27. b4 {[%clk 0:02:04.5]} 27... g5 {[%clk
0:02:06.6]} 28. hxg5 {[%clk 0:02:01.7]} 28... Bxg5 {[%clk 0:02:07.5]} 29. Nb6
{[%clk 0:01:54.7]} 29... Bf3 {[%clk 0:01:57.8]} 30. d5 {[%clk 0:01:54.4]} 30...
Bd8 {[%clk 0:01:52.5]} 31. d6 {[%clk 0:01:49.1]} 31... Ra7 {[%clk 0:01:52.5]}
32. Nc4 {[%clk 0:01:45]} 32... h4 {[%clk 0:01:51.7]} 33. gxh4 {[%clk 0:01:44.4]}
33... Bxh4 {[%clk 0:01:50.2]} 34. d7 {[%clk 0:01:43.9]} 34... Kg7 {[%clk
0:01:45.4]} 35. Ne5 {[%clk 0:01:38.6]} 35... Ba8 {[%clk 0:01:35.9]} 36. Rd1
{[%clk 0:01:33.6]} 36... Rxa3 {[%clk 0:01:28.3]} 37. d8=Q {[%clk 0:01:20.8]}
37... Bxd8 {[%clk 0:01:27.1]} 38. Rxd8 {[%clk 0:01:21.7]} 38... Ra1+ {[%clk
0:01:26.5]} 39. Kh2 {[%clk 0:01:22.3]} 39... Bh1 {[%clk 0:01:24]} 40. Rd7 {[%clk
0:01:19.3]} 40... Kf6 {[%clk 0:01:21.6]} 41. f4 {[%clk 0:01:17.6]} 41... Kg7
{[%clk 0:01:14.7]} 42. Rxf7+ {[%clk 0:01:16.2]} 42... Kh6 {[%clk 0:01:13.2]} 43.
Rf6+ {[%clk 0:01:10.3]} 43... Kh5 {[%clk 0:01:05.6]} 44. Rxf5+ {[%clk
0:01:09.6]} 44... Kh4 {[%clk 0:01:03.7]} 45. Ng6+ {[%clk 0:01:08.4]} 45... Kg4
{[%clk 0:01:03.4]} 46. Rg5+ {[%clk 0:01:05]} 46... Kf3 {[%clk 0:00:59.9]} 47.
Rg1 {[%clk 0:01:03.2]} 47... Ra2+ {[%clk 0:00:58.4]} 48. Kxh1 {[%clk 0:01:02.1]}
48... Ra7 {[%clk 0:00:55.8]} 49. Nh4+ {[%clk 0:01:00.2]} 49... Kf2 {[%clk
0:00:54.8]} 50. Rg4 {[%clk 0:00:54.1]} 50... Ra1+ {[%clk 0:00:49.6]} 51. Kh2
{[%clk 0:00:54.2]} 51... Kxe3 {[%clk 0:00:49.2]} 52. f5 {[%clk 0:00:52.2]} 52...
Ra2+ {[%clk 0:00:47.9]} 53. Ng2+ {[%clk 0:00:52.3]} 53... Kf2 {[%clk 0:00:47.9]}
54. Rf4+ {[%clk 0:00:51]} 54... Ke2 {[%clk 0:00:46.9]} 55. f6 {[%clk 0:00:51.2]}
55... Ra8 {[%clk 0:00:46.7]} 56. f7 {[%clk 0:00:50.9]} 56... Rh8+ {[%clk
0:00:47.6]} 57. Kg3 {[%clk 0:00:50.9]} 57... Kd1 {[%clk 0:00:45.4]} 58. Ne6
{[%clk 0:00:50.7]} 58... Rf8 {[%clk 0:00:46.3]} 59. Nxf8 {[%clk 0:00:50.1]}
59... Kc1 {[%clk 0:00:47.2]} 60. Rf2 {[%clk 0:00:49.6]} 60... Kb1 {[%clk
0:00:28.8]} 61. b5 {[%clk 0:00:50.5]} 61... Ka1 {[%clk 0:00:29.5]} 62. b6 {[%clk
0:00:51.4]} 62... Kb1 {[%clk 0:00:29.3]} 63. b7 {[%clk 0:00:50.6]} 63... Ka1
{[%clk 0:00:30.2]} 64. Ne3 {[%clk 0:00:50.2]} 64... Kb1 {[%clk 0:00:30.1]} 65.
b8=Q+ {[%clk 0:00:50.3]} 65... Ka1 {[%clk 0:00:31]} 66. Qb2# {[%clk 0:00:50.6]}
1-0

[Event "Late-Titled-Tuesday-Blitz-January-16-2024"]
[Site "Chess.com"]
[Date "2024.01.16"]
[Round "6"]
[White "ThaBarWa"]
[Black "SEBAZZANO"]
[Result "1-0"]
[WhiteElo "2392"]
[BlackElo "2227"]
[TimeControl "180+1"]
[EndTime "15:03:52 PST"]
[Termination "ThaBarWa won by resignation"]

1. e4 {[%clk 0:03:00.9]} 1... e6 {[%clk 0:02:58.7]} 2. d4 {[%clk 0:03:00.7]}
2... d5 {[%clk 0:02:59.1]} 3. e5 {[%clk 0:03:01.4]} 3... b6 {[%clk 0:02:57]} 4.
Nf3 {[%clk 0:02:56.1]} 4... Qd7 {[%clk 0:02:57.2]} 5. c3 {[%clk 0:02:50.4]} 5...
Ba6 {[%clk 0:02:56.9]} 6. Bxa6 {[%clk 0:02:41.1]} 6... Nxa6 {[%clk 0:02:57.8]}
7. O-O {[%clk 0:02:41.6]} 7... c5 {[%clk 0:02:56.7]} 8. a3 {[%clk 0:02:38]} 8...
Ne7 {[%clk 0:02:54.6]} 9. b4 {[%clk 0:02:23.5]} 9... c4 {[%clk 0:02:44.3]} 10.
a4 {[%clk 0:01:51.2]} 10... Nc7 {[%clk 0:02:43.7]} 11. Na3 {[%clk 0:01:51.7]}
11... a6 {[%clk 0:02:40.7]} 12. Nc2 {[%clk 0:01:52.1]} 12... Ng6 {[%clk
0:02:37.1]} 13. h4 {[%clk 0:01:49.9]} 13... Ne7 {[%clk 0:02:12]} 14. h5 {[%clk
0:01:45.6]} 14... h6 {[%clk 0:02:06.2]} 15. g4 {[%clk 0:01:43.2]} 15... Nc6
{[%clk 0:01:59.4]} 16. Nh4 {[%clk 0:01:32.5]} 16... Be7 {[%clk 0:01:56.7]} 17.
Ng2 {[%clk 0:01:30.3]} 17... Na7 {[%clk 0:01:16.8]} 18. f4 {[%clk 0:01:28]}
18... O-O-O {[%clk 0:01:16.3]} 19. b5 {[%clk 0:01:16.9]} 19... a5 {[%clk
0:01:15.4]} 20. Nce3 {[%clk 0:01:07.7]} 20... g6 {[%clk 0:01:13.6]} 21. hxg6
{[%clk 0:00:53.8]} 21... fxg6 {[%clk 0:01:14.5]} 22. Ba3 {[%clk 0:00:35.9]}
22... Bxa3 {[%clk 0:01:11.4]} 23. Rxa3 {[%clk 0:00:36.8]} 23... Rdg8 {[%clk
0:00:58.8]} 24. Ra2 {[%clk 0:00:35.4]} 24... Kb7 {[%clk 0:00:58.6]} 25. Raf2
{[%clk 0:00:34.7]} 25... Nc8 {[%clk 0:00:57.5]} 26. Qf3 {[%clk 0:00:34.9]} 26...
Ne7 {[%clk 0:00:55.9]} 27. Nxc4 {[%clk 0:00:35]} 27... Ka7 {[%clk 0:00:53]} 28.
Nd6 {[%clk 0:00:35.4]} 28... Nc8 {[%clk 0:00:50.8]} 29. Nxc8+ {[%clk 0:00:32.3]}
29... Qxc8 {[%clk 0:00:51.7]} 30. Ne3 {[%clk 0:00:28.4]} 30... h5 {[%clk
0:00:46.9]} 31. g5 {[%clk 0:00:28.3]} 31... Qd7 {[%clk 0:00:40.6]} 32. Rc1
{[%clk 0:00:21.9]} 32... Rc8 {[%clk 0:00:38.9]} 33. Rfc2 {[%clk 0:00:18.8]}
33... Ne8 {[%clk 0:00:32.3]} 34. c4 {[%clk 0:00:18.6]} 34... dxc4 {[%clk
0:00:28.8]} 35. Rxc4 {[%clk 0:00:19.5]} 35... Ng7 {[%clk 0:00:27.8]} 36. d5
{[%clk 0:00:14.6]} 36... exd5 {[%clk 0:00:20.4]} 37. Qxd5 {[%clk 0:00:13.8]}
37... Qh3 {[%clk 0:00:16.1]} 38. Rc7+ {[%clk 0:00:12.1]} 1-0

[Event "Late-Titled-Tuesday-Blitz-January-16-2024"]
[Site "Chess.com"]
[Date "2024.01.16"]
[Round "6"]
[White "vugarrasulov"]
[Black "ChessBrainiacOnTwitch"]
[Result "1-0"]
[WhiteElo "2973"]
[BlackElo "2803"]
[TimeControl "180+1"]
[EndTime "15:03:56 PST"]
[Termination "vugarrasulov won by checkmate"]

1. d4 {[%clk 0:03:00.9]} 1... Nf6 {[%clk 0:02:56.5]} 2. c4 {[%clk 0:03:01.4]}
2... g6 {[%clk 0:02:55.5]} 3. Nc3 {[%clk 0:03:00.3]} 3... Bg7 {[%clk 0:02:56.4]}
4. e4 {[%clk 0:03:00.6]} 4... O-O {[%clk 0:02:57]} 5. h3 {[%clk 0:03:00.6]} 5...
d6 {[%clk 0:02:57.2]} 6. Be3 {[%clk 0:03:01.3]} 6... a6 {[%clk 0:02:53.4]} 7.
Nf3 {[%clk 0:02:59.8]} 7... Nbd7 {[%clk 0:02:52.2]} 8. Be2 {[%clk 0:02:56.3]}
8... c5 {[%clk 0:02:50.8]} 9. O-O {[%clk 0:02:52.1]} 9... Qa5 {[%clk 0:02:36.2]}
10. e5 {[%clk 0:02:42.5]} 10... Ne8 {[%clk 0:02:00.1]} 11. exd6 {[%clk
0:02:40.6]} 11... Nxd6 {[%clk 0:01:49.9]} 12. Nd5 {[%clk 0:02:39.3]} 12... Nf5
{[%clk 0:01:44.2]} 13. Bd2 {[%clk 0:02:17]} 13... Qd8 {[%clk 0:01:43.3]} 14.
dxc5 {[%clk 0:02:12.2]} 14... Nxc5 {[%clk 0:01:44.1]} 15. Bb4 {[%clk 0:02:03.9]}
15... b6 {[%clk 0:01:42.3]} 16. Bc3 {[%clk 0:01:39.5]} 16... Bb7 {[%clk
0:01:32.4]} 17. Bxg7 {[%clk 0:01:38]} 17... Kxg7 {[%clk 0:01:33.3]} 18. b4
{[%clk 0:01:33.8]} 18... Ne4 {[%clk 0:01:30.6]} 19. Qd3 {[%clk 0:01:21.1]} 19...
e6 {[%clk 0:00:47.5]} 20. Qxe4 {[%clk 0:01:10.9]} 20... exd5 {[%clk 0:00:47.7]}
21. cxd5 {[%clk 0:01:06.4]} 21... Qxd5 {[%clk 0:00:48.6]} 22. Qf4 {[%clk
0:01:02.7]} 22... Rfe8 {[%clk 0:00:46.6]} 23. Rfd1 {[%clk 0:00:40.1]} 23... Qe4
{[%clk 0:00:26.3]} 24. Qxe4 {[%clk 0:00:40.3]} 24... Rxe4 {[%clk 0:00:27.2]} 25.
Rd7 {[%clk 0:00:39.2]} 25... Bc6 {[%clk 0:00:23]} 26. Rc7 {[%clk 0:00:39.5]}
26... Bd5 {[%clk 0:00:21.4]} 27. Bd3 {[%clk 0:00:27.9]} 27... Rxb4 {[%clk
0:00:21.7]} 28. Bxf5 {[%clk 0:00:28.2]} 28... gxf5 {[%clk 0:00:22.6]} 29. Ne5
{[%clk 0:00:23]} 29... Be6 {[%clk 0:00:20]} 30. Rd1 {[%clk 0:00:19.4]} 30... Re4
{[%clk 0:00:19.9]} 31. Nf3 {[%clk 0:00:18.3]} 31... Rc8 {[%clk 0:00:19]} 32. Ra7
{[%clk 0:00:17.3]} 32... Ra4 {[%clk 0:00:18.7]} 33. Rd6 {[%clk 0:00:17.3]} 33...
Rxa2 {[%clk 0:00:16.2]} 34. Rxe6 {[%clk 0:00:17.4]} 34... Rc1+ {[%clk 0:00:15]}
35. Kh2 {[%clk 0:00:17.8]} 35... Rxf2 {[%clk 0:00:10.4]} 36. Ng5 {[%clk
0:00:15.8]} 36... Rc8 {[%clk 0:00:04]} 37. Rxf7+ {[%clk 0:00:15.9]} 37... Kg8
{[%clk 0:00:04.6]} 38. Ree7 {[%clk 0:00:16]} 38... h6 {[%clk 0:00:03.2]} 39.
Rg7+ {[%clk 0:00:15.9]} 39... Kh8 {[%clk 0:00:03.9]} 40. Rh7+ {[%clk 0:00:15]}
40... Kg8 {[%clk 0:00:04.5]} 41. Reg7+ {[%clk 0:00:15.7]} 41... Kf8 {[%clk
0:00:04.9]} 42. Ne6+ {[%clk 0:00:16.6]} 42... Ke8 {[%clk 0:00:05.4]} 43. Rh8#
{[%clk 0:00:17.5]} 1-0